bitfinex/quotes_ETHUSD_20241104
["timestamp","ask_amount","ask_price","bid_price","bid_amount"]
[1730732776553,0.0670029,2452.9,2452.8,4.07697]
[1730732776812,0.0814626,2453.4,2452.9,4.07671]
[1730732776954,4.07633,2453.2,2452.7,4.07709]
[1730732777167,8.2342226,2453.2,2452.7,4.07709]
[1730732777361,4.57321526,2453.4,2452.9,4.07679]
[1730732777592,0.0814626,2453.3,2452.8,4.07695]
[1730732777797,8.15287,2453.2,2452.6,8.1544]
[1730732777975,5.80602586,2453.1,2452.6,4.0772]
[1730732778195,5.80602586,2453.1,2452.7,4.07713]
[1730732778397,4.07626,2453.3,2452.7,4.07713]
[1730732778692,4.62638,2453.2,2452.7,4.07713]
[1730732778893,0.0814626,2453.1,2452.7,4.07713]
[1730732779269,0.0814626,2453.1,2452.7,4.07705]
[1730732779772,4.07668,2453.0,2452.5,4.85154]
[1730732780181,4.07689,2452.9,2452.5,0.7742]
[1730732780392,4.1581626,2453.0,2452.5,8.92894]
[1730732780568,0.0814626,2453.0,2452.5,4.85156]
[1730732780766,0.55,2453.0,2452.6,4.0772]
[1730732780966,0.55,2453.3,2452.9,4.07677]
[1730732781280,0.55,2453.3,2452.7,4.07713]
[1730732781281,4.7077126,2453.3,2452.8,4.07695]
[1730732781908,0.6314626,2453.3,2452.8,4.07694]
[1730732782072,4.07631,2453.2,2452.6,4.0772]
[1730732782592,4.7076126,2453.3,2452.8,4.07696]
[1730732782975,0.6314626,2453.3,2452.8,4.07689]
[1730732783174,0.55,2453.3,2452.9,4.0768]
[1730732783611,4.07577,2453.6,2453.0,4.07663]
[1730732783817,0.06392786,2453.2,2453.1,4.86228]
[1730732783986,0.8999626,2453.7,2453.2,4.07627]
[1730732784323,0.8999626,2453.7,2453.1,0.7859]
[1730732784324,4.13748926,2453.6,2453.1,0.7859]
[1730732784482,4.1572826,2453.5,2453.1,0.7859]
[1730732784687,4.13829002,2453.4,2452.9,4.07672]
[1730732784888,0.06221002,2453.4,2453.0,4.07653]
[1730732785296,0.06221002,2453.4,2453.0,4.15805408]
[1730732785501,0.06221002,2453.4,2453.2,4.07622]
[1730732785705,0.8185,2453.7,2453.3,4.07614]
[1730732786018,0.8185,2453.7,2453.2,4.07622]
[1730732786019,4.13753602,2453.6,2453.2,4.07622]
[1730732786218,4.13753602,2453.6,2453.0,4.07655]
[1730732786514,8.21329602,2453.6,2453.1,4.07646]
[1730732786806,0.6314626,2453.5,2453.0,4.07654]
[1730732787013,8.7832626,2453.5,2453.0,4.07654]
[1730732787209,0.06228184,2453.4,2453.0,4.07654]
[1730732787574,4.13828184,2453.4,2453.0,4.07654]
[1730732787814,0.06228184,2453.4,2453.0,4.07654]
[1730732788404,0.06228184,2453.4,2453.1,4.07646]
[1730732788721,0.06228184,2453.4,2453.0,8.14743564]
[1730732789021,0.06228184,2453.4,2453.3,4.07614]
[1730732789201,0.06228184,2453.4,2453.3,4.88974]
[1730732789380,4.1566926,2453.9,2453.4,4.07591]
[1730732789715,0.8206162,2454.0,2453.3,0.8136]
[1730732789871,0.0604162,2454.0,2453.8,4.07515]
[1730732790276,0.0604162,2454.0,2453.9,4.3047321]
[1730732790511,0.0604162,2454.0,2453.9,0.2295921]
[1730732790727,0.0604162,2454.0,2453.9,4.3047321]
[1730732791174,0.0604162,2454.0,2453.9,0.2295921]
[1730732791375,4.9477862,2454.0,2453.9,0.2295921]
[1730732791594,4.9477862,2454.0,2453.4,0.59740535]
[1730732791595,4.07581,2453.5,2453.4,0.59740535]
[1730732791817,4.07581,2453.5,2452.7,4.07703]
[1730732791818,0.8124,2453.5,2452.7,4.07703]
[1730732792115,0.0814626,2453.4,2452.8,0.59761141]
[1730732792279,0.55,2453.5,2453.1,8.1528]
[1730732792480,4.07558,2453.7,2453.3,4.07613]
[1730732792906,8.15107,2453.7,2453.4,0.59827137]
[1730732793117,4.07547,2453.7,2453.5,0.23009752]
[1730732793315,0.0814626,2453.7,2453.6,0.59870165]
[1730732793514,4.83568,2453.8,2453.6,0.59870165]
[1730732793688,4.07547,2453.7,2453.2,4.07625]
[1730732794014,4.07547,2453.7,2453.1,0.8119]
[1730732794015,4.83568,2453.8,2453.4,4.07596]
[1730732794221,4.62515,2453.9,2453.5,0.59897439]
[1730732794380,5.39429,2453.7,2453.6,0.59897439]
[1730732794587,5.4757526,2453.7,2453.6,0.59897439]
[1730732794790,5.39429,2453.7,2453.6,0.59897439]
[1730732794985,5.4757526,2453.7,2453.6,0.59897439]
[1730732795185,5.39429,2453.7,2453.6,0.59897439]
[1730732795929,5.4757526,2453.7,2453.6,0.59897439]
[1730732796125,6.13371247,2453.7,2453.6,0.59897439]
[1730732796328,6.13371247,2453.7,2453.0,4.0765]
[1730732796329,4.07587,2453.5,2453.0,4.0765]
[1730732796532,4.07624,2453.3,2453.1,0.3695344]
[1730732796684,4.07599,2453.4,2453.2,0.60048222]
[1730732796886,4.07599,2453.4,2453.3,0.60048222]
[1730732798824,5.51130427,2453.4,2453.3,0.60048222]
[1730732799323,6.34706687,2453.4,2453.3,0.60048222]
[1730732799934,4.07664,2453.0,2452.6,4.86838]
[1730732800141,4.07664,2453.0,2452.7,0.23138841]
[1730732800431,0.06165887,2452.9,2452.8,0.60163364]
[1730732801246,4.9954888,2454.0,2453.4,0.7532]
[1730732801448,4.07554,2453.7,2453.5,0.60163364]
[1730732801745,4.1570026,2453.7,2453.6,0.60163364]
[1730732802032,4.1570026,2453.7,2453.2,4.07622]
[1730732802033,4.07575,2453.6,2453.2,4.07629]
[1730732802335,0.0814626,2453.7,2453.3,0.60198345]
[1730732802519,0.0814626,2453.9,2453.4,0.60198345]
[1730732802716,0.0814626,2453.9,2453.1,4.07645]
[1730732802717,4.07581,2453.5,2453.1,4.07645]
[1730732802903,4.07569,2453.6,2453.2,4.67835999]
[1730732803092,4.1571526,2453.6,2453.1,4.07645]
[1730732803301,0.55,2453.6,2453.2,4.67824646]
[1730732803597,4.07582,2453.5,2453.3,0.60205646]
[1730732803835,4.07582,2453.5,2453.4,0.60205646]
[1730732803836,4.1572826,2453.5,2453.4,0.60205646]
[1730732803991,4.9569826,2453.5,2453.4,0.60205646]
[1730732804193,5.5069826,2453.5,2453.4,0.60205646]
[1730732805133,0.7908,2453.8,2453.4,0.60205646]
[1730732805335,4.1354962,2454.0,2453.5,0.60205646]
[1730732805532,4.07521,2453.9,2453.6,0.60205646]
[1730732805839,4.1354962,2454.0,2453.8,4.07523]
[1730732805840,0.0604162,2454.0,2453.8,4.07523]
[1730732806037,0.0604162,2454.0,2453.9,0.60205646]
[1730732806194,4.1353862,2454.0,2453.9,0.60205646]
[1730732806390,4.0755,2453.7,2453.4,0.8228]
[1730732806691,4.1572526,2453.6,2453.5,0.60225254]
[1730732807124,4.7072526,2453.6,2453.5,0.60225254]
[1730732808475,9.48236886,2453.6,2453.5,0.60225254]
[1730732808625,9.40090626,2453.6,2453.5,0.60225254]
[1730732808828,9.45910175,2453.6,2453.5,8.69e-06]
[1730732809053,4.0771,2452.8,2452.2,4.92908259]
[1730732809264,4.62723,2452.7,2452.3,4.44862535]
[1730732809468,4.68481024,2452.7,2452.4,0.37082535]
[1730732809674,4.68481024,2452.7,2452.2,0.85124259]
[1730732809675,0.60758024,2452.7,2452.5,0.37082535]
[1730732809970,4.68473024,2452.7,2452.6,0.37082535]
[1730732811148,0.60758024,2452.7,2452.6,0.37082535]
[1730732811362,0.05758024,2452.7,2452.6,0.37082535]
[1730732811877,4.62682,2452.9,2452.6,0.37082535]
[1730732812167,4.62682,2452.9,2452.7,0.37065969]
[1730732812340,4.7082826,2452.9,2452.8,0.37065969]
[1730732813166,4.07673,2453.0,2452.8,0.37065969]
[1730732813366,0.6314626,2453.1,2452.9,0.37061072]
[1730732813555,0.55,2453.1,2453.0,0.37061072]
[1730732813727,4.6265,2453.1,2453.0,0.37061072]
[1730732813933,5.58051726,2453.1,2453.0,0.37061072]
[1730732814130,5.66197986,2453.1,2453.0,0.37061072]
[1730732814370,5.66197986,2453.1,2452.4,0.7666]
[1730732814371,4.07698,2452.8,2452.4,0.7666]
[1730732814575,4.07698,2452.8,2452.5,0.37055134]
[1730732814760,4.07698,2452.8,2452.4,0.7666]
[1730732814761,0.6314626,2452.7,2452.6,0.37055134]
[1730732814938,0.55,2452.7,2452.6,0.37055134]
[1730732815340,4.07678,2453.0,2452.6,0.37055134]
[1730732815554,0.55,2452.9,2452.7,0.37055134]
[1730732815761,0.55,2452.9,2452.8,0.37055134]
[1730732816877,0.55,2452.9,2452.5,4.07733]
[1730732817034,0.55,2453.1,2452.7,4.07713]
[1730732817236,4.07672,2453.0,2452.5,4.07744]
[1730732817476,0.0814626,2452.9,2452.8,0.37037505]
[1730732817680,4.6265,2453.1,2452.8,0.37037505]
[1730732817848,4.1581726,2453.0,2452.9,0.37037505]
[1730732818168,4.6265,2453.1,2452.9,0.37037505]
[1730732818424,4.6265,2453.1,2452.6,4.07721]
[1730732818559,4.6265,2453.1,2452.7,0.37034585]
[1730732818876,4.6265,2453.1,2452.6,4.07721]
[1730732818877,4.1581226,2453.0,2452.8,0.37034585]
[1730732819173,4.1581226,2453.0,2452.6,4.07721]
[1730732819375,4.1581226,2453.0,2452.7,0.37033171]
[1730732819537,4.07689,2452.9,2452.5,4.07745]
[1730732819739,4.07666,2453.0,2452.6,4.44763041]
[1730732819939,4.1581226,2453.0,2452.7,0.37034041]
[1730732820139,4.1581226,2453.0,2452.6,4.07729]
[1730732820384,4.1581226,2453.0,2452.7,0.3704197]
[1730732820538,0.0814626,2453.0,2452.6,4.07727]
[1730732820738,0.55,2453.1,2452.7,4.4474795]
[1730732820975,0.0814626,2453.2,2452.8,4.30846009]
[1730732821282,4.07597,2453.4,2452.9,5.48972959]
[1730732821482,4.1572826,2453.5,2453.0,4.67847959]
[1730732821638,4.07566,2453.6,2453.1,4.38943608]
[1730732821838,4.1571226,2453.6,2453.2,0.23150009]
[1730732822070,4.1571226,2453.6,2452.9,0.8111]
[1730732822071,4.84907,2453.4,2453.3,0.23150009]
[1730732822274,4.07647,2453.1,2453.0,0.23155836]
[1730732822485,0.0814626,2453.1,2452.7,0.37047883]
[1730732822692,4.07697,2452.8,2452.7,0.23159191]
[1730732822850,4.07713,2452.7,2452.3,4.07779]
[1730732823178,4.07697,2452.8,2452.3,4.07779]
[1730732823179,4.07701,2452.8,2452.4,0.60223963]
[1730732823349,0.55,2452.8,2452.5,0.23162495]
[1730732823549,4.1586026,2452.7,2452.6,0.23163149]
[1730732823775,0.55,2452.7,2452.4,4.07747]
[1730732823975,0.55,2452.7,2452.5,0.23163693]
[1730732824182,0.0814626,2452.8,2452.3,0.37061468]
[1730732824183,4.07664,2453.0,2452.6,4.3089205]
[1730732824476,0.0814626,2453.0,2452.6,4.07729]
[1730732824638,0.0814626,2453.0,2452.5,4.07737]
[1730732824840,4.07687,2452.9,2452.6,0.23164519]
[1730732825179,4.07687,2452.9,2452.5,4.07737]
[1730732825385,4.07687,2452.9,2452.6,0.23165201]
[1730732825540,4.07687,2452.9,2452.5,4.07737]
[1730732825879,4.07687,2452.9,2452.6,0.2316478]
[1730732826111,4.07687,2452.9,2452.5,4.07742]
[1730732826306,8.15377,2452.9,2452.6,0.23165345]
[1730732826515,4.07697,2452.8,2452.6,0.23165345]
[1730732826722,4.07697,2452.8,2452.4,4.07761]
[1730732827016,4.85226,2452.7,2452.5,0.2316525]
[1730732827318,0.55,2452.4,2452.1,0.23170255]
[1730732827611,0.7751,2452.7,2452.1,4.07812]
[1730732827818,0.55,2452.6,2452.3,4.07772]
[1730732827977,0.55,2452.6,2452.3,4.07768]
[1730732828178,0.55,2452.6,2452.2,4.07785]
[1730732828400,0.55,2452.6,2452.3,0.23159521]
[1730732828597,0.05745133,2452.5,2452.2,4.07785]
[1730732828879,0.05745133,2452.5,2452.3,0.23134788]
[1730732829227,0.05745133,2452.5,2452.4,4.07763]
[1730732829512,4.86939,2453.2,2452.6,4.0772]
[1730732829751,0.05768051,2453.1,2452.7,4.077]
[1730732829960,0.05768051,2453.1,2452.9,4.07672]
[1730732830100,0.793,2453.0,2452.7,4.07712]
[1730732830300,0.793,2453.0,2452.4,0.8292]
[1730732830301,0.05763798,2452.9,2452.5,4.07738]
[1730732830598,0.13910058,2452.9,2452.6,0.23130157]
[1730732830834,4.07713,2452.7,2452.6,0.23130157]
[1730732831037,4.21600058,2452.9,2452.4,0.8292]
[1730732831348,4.13456449,2452.8,2452.4,4.90672]
[1730732831520,4.0773,2452.6,2452.2,4.07783]
[1730732831720,0.05740316,2452.5,2452.3,0.23133147]
[1730732831930,0.05740316,2452.5,2452.4,4.30896147]
[1730732832135,0.55,2452.7,2452.4,0.23133147]
[1730732832456,0.55,2452.7,2452.4,4.07756]
[1730732832769,0.05740019,2452.6,2452.5,0.23135494]
[1730732833372,0.05740019,2452.6,2452.5,4.30882494]
[1730732833545,0.05740019,2452.6,2452.5,5.17445858]
[1730732833708,4.07632,2453.2,2452.6,4.0772]
[1730732833908,0.05766325,2453.1,2452.6,4.07728]
[1730732834223,0.84843374,2453.5,2453.0,0.7841]
[1730732834425,0.84843374,2453.7,2453.5,4.07581]
[1730732834743,1.69730456,2453.9,2453.4,4.07595]
[1730732834744,4.1567126,2453.9,2453.4,4.07595]
[1730732835353,0.90884994,2454.0,2453.5,1.03100084]
[1730732835509,0.0604162,2454.0,2453.7,4.07531]
[1730732835713,0.0604162,2454.0,2453.9,4.07514]
[1730732836445,0.0604162,2454.0,2453.8,4.07523]
[1730732836625,0.0604162,2454.0,2453.8,8.15045]
[1730732836949,0.0604162,2454.0,2453.9,4.07514]
[1730732837361,0.0604162,2454.0,2453.9,4.15663186]
[1730732837531,0.0604162,2454.0,2453.9,4.07514]
[1730732838563,0.0604162,2454.0,2453.9,4.15663181]
[1730732838740,0.0604162,2454.0,2453.9,4.07514]
[1730732839156,0.0604162,2454.0,2453.9,4.93883181]
[1730732839445,0.0604162,2454.0,2453.9,12.77502745]
[1730732839672,0.0604162,2454.0,2453.9,8.45741374]
[1730732839865,0.0604162,2454.0,2453.9,8.08813557]
[1730732840020,0.0604162,2454.0,2453.9,5.08813557]
[1730732840534,0.11082304,2454.0,2453.9,4.93882709]
[1730732840852,0.11082304,2454.0,2453.9,4.85734]
[1730732842242,0.11082304,2454.0,2453.6,0.8171]
[1730732842415,0.11082304,2454.0,2453.9,4.07514]
[1730732842617,0.11082304,2454.0,2453.9,4.15663463]
[1730732843217,0.11082304,2454.0,2453.9,4.07514]
[1730732843654,0.11082304,2454.0,2453.9,4.15662493]
[1730732843857,0.0604162,2454.0,2453.9,4.07514]
[1730732844062,0.11036716,2454.0,2453.9,4.07514]
[1730732844354,0.11036716,2454.0,2453.9,4.15662503]
[1730732844554,0.11036716,2454.0,2453.9,4.07514]
[1730732846072,0.11036716,2454.0,2453.9,4.15662506]
[1730732846571,0.11036716,2454.0,2453.9,4.15662485]
[1730732846754,0.11036716,2454.0,2453.9,4.07514]
[1730732847682,0.11036716,2454.0,2453.8,4.07531]
[1730732847842,0.11036716,2454.0,2453.7,4.07538]
[1730732848238,0.11036716,2454.0,2453.7,8.15077]
[1730732848512,0.11036716,2454.0,2453.7,4.07538]
[1730732848847,0.11036716,2454.0,2453.3,4.076]
[1730732849176,0.11036716,2454.0,2453.9,4.07514]
[1730732850774,0.0604162,2454.0,2453.9,4.07514]
[1730732850941,0.10699858,2454.0,2453.9,4.15662538]
[1730732852295,0.10699858,2454.0,2453.9,4.07514]
[1730732853112,0.10699858,2454.0,2453.5,7.87996]
[1730732853113,0.10699858,2454.0,2453.7,4.07539]
[1730732853400,0.10699858,2454.0,2453.8,4.07528]
[1730732853563,0.10699858,2454.0,2453.7,4.07539]
[1730732853973,0.10699858,2454.0,2453.6,4.07564]
[1730732854505,0.10699858,2454.0,2453.8,4.07531]
[1730732854660,0.0604162,2454.0,2453.7,4.07545]
[1730732854854,0.0604162,2454.0,2453.4,4.07589]
[1730732854855,0.83674307,2453.9,2453.4,4.07589]
[1730732855055,4.076,2453.4,2452.9,4.07666]
[1730732855295,4.86652,2453.2,2453.0,0.23042325]
[1730732855454,4.86652,2453.2,2452.8,4.44558506]
[1730732855455,0.7902,2453.2,2452.9,4.07664]
[1730732855766,0.04589768,2453.1,2452.9,4.07664]
[1730732855972,0.04589768,2453.1,2452.8,4.44568624]
[1730732856177,0.04589768,2453.1,2452.6,0.42558523]
[1730732856178,4.077,2452.8,2452.6,0.42558523]
[1730732856473,4.62672,2453.0,2452.5,4.13861101]
[1730732856474,0.8335405,2452.7,2452.5,4.13861101]
[1730732857054,0.8335405,2452.7,2452.5,0.06115101]
[1730732857252,4.9922431,2452.7,2452.5,0.06115101]
[1730732857450,4.6273,2452.6,2451.9,0.42537098]
[1730732857656,0.0814626,2452.5,2452.1,4.07812]
[1730732857901,4.20497211,2452.5,2452.1,4.07812]
[1730732858188,0.55,2452.3,2451.9,4.07837]
[1730732858390,0.55,2452.3,2452.0,4.07822]
[1730732858391,0.6314626,2452.3,2452.0,4.07822]
[1730732858693,0.7875,2452.7,2452.1,4.07813]
[1730732858694,0.04554726,2452.2,2452.1,4.07813]
[1730732859100,4.0773,2452.6,2452.1,4.30874152]
[1730732859296,4.86473,2452.7,2452.2,4.07787]
[1730732859458,0.04543797,2452.5,2452.1,4.07798]
[1730732859652,0.04543797,2452.5,2452.0,4.07817]
[1730732859653,4.07748,2452.5,2452.0,4.07817]
[1730732859860,4.07799,2452.2,2451.7,4.44767465]
[1730732860102,0.8791626,2452.1,2451.8,0.2306147]
[1730732860305,0.55,2451.9,2451.7,0.230619]
[1730732860599,0.55,2451.9,2451.4,4.07922]
[1730732860600,0.8144,2451.6,2451.4,4.07922]
[1730732860953,0.04492034,2451.5,2451.4,4.07922]
[1730732861401,0.04492034,2451.5,2451.1,4.07968]
[1730732861595,0.04492034,2451.5,2450.9,5.41237223]
[1730732861596,4.07947,2451.3,2450.9,4.08001]
[1730732861890,0.12638294,2451.5,2450.9,4.08001]
[1730732861891,4.62938,2451.4,2450.9,4.08001]
[1730732862102,0.0448682,2451.2,2451.1,4.0798]
[1730732862259,0.8144,2451.6,2451.0,4.07983]
[1730732862260,0.04508946,2451.3,2451.0,4.07983]
[1730732862584,0.04492512,2451.2,2451.1,4.0798]
[1730732862789,0.04492512,2451.2,2451.0,4.07983]
[1730732862983,4.9748426,2451.6,2451.0,8.15971]
[1730732863536,0.04506821,2451.5,2451.0,8.15971]
[1730732863698,4.12422821,2451.5,2451.0,7.07988]
[1730732864085,0.04506821,2451.5,2451.0,7.07988]
[1730732864270,0.04506821,2451.5,2451.1,4.07979]
[1730732864474,0.12653081,2451.5,2451.1,4.07979]
[1730732864685,0.04506821,2451.5,2451.1,4.07979]
[1730732864871,0.12653081,2451.5,2451.0,3.0]
[1730732865063,4.20575081,2451.5,2451.0,7.07993]
[1730732865469,0.04506821,2451.5,2451.1,4.07976]
[1730732865664,4.12419821,2451.5,2451.0,11.1598]
[1730732865872,0.04506821,2451.5,2451.1,4.0798]
[1730732866298,0.04506821,2451.5,2451.0,7.07987]
[1730732866605,4.07964,2451.2,2450.9,3.0]
[1730732866807,0.7777,2451.0,2450.6,4.08048]
[1730732866965,0.7777,2451.0,2450.4,4.08084]
[1730732866966,4.08013,2450.9,2450.4,4.08084]
[1730732867330,4.08057,2450.7,2450.1,4.08138]
[1730732867622,0.12561899,2450.6,2450.2,4.08127]
[1730732868179,0.04415639,2450.6,2450.3,4.08101]
[1730732869277,0.49838817,2450.9,2450.4,4.08085]
[1730732869278,4.57862817,2450.9,2450.4,4.08085]
[1730732869594,4.0805,2450.7,2450.1,4.50626001]
[1730732869925,0.7631,2450.5,2450.1,4.50633001]
[1730732870472,0.04385627,2450.4,2450.1,0.42491001]
[1730732870716,0.04385627,2450.4,2450.3,4.08113]
[1730732871312,0.7631,2450.8,2450.4,4.08091]
[1730732871717,0.7631,2450.8,2450.5,4.08079]
[1730732872209,0.7631,2450.8,2450.3,4.081]
[1730732872210,0.7631,2450.8,2450.4,4.08095]
[1730732872615,0.7631,2450.8,2450.5,4.08076]
[1730732872801,0.7631,2450.8,2450.5,4.0807]
[1730732873314,0.7631,2450.8,2450.4,4.08096]
[1730732873615,0.04429066,2450.7,2450.4,4.08096]
[1730732873781,0.04429066,2450.7,2450.5,4.08079]
[1730732873982,0.7631,2450.8,2450.5,4.08079]
[1730732874199,0.04378618,2450.7,2450.5,4.08079]
[1730732874403,0.04378618,2450.7,2450.4,4.08088]
[1730732874719,0.7631,2450.8,2450.5,4.08078]
[1730732875317,0.04432577,2450.7,2450.4,4.08088]
[1730732875475,4.20635837,2450.7,2450.2,4.08117]
[1730732875675,0.0814626,2450.7,2450.4,4.08088]
[1730732875893,0.04423124,2450.6,2450.3,4.08111]
[1730732876478,0.04423124,2450.6,2450.3,8.16216]
[1730732876680,0.04423124,2450.6,2450.4,4.08092]
[1730732876937,0.04423124,2450.6,2450.5,4.08079]
[1730732877277,0.7631,2450.8,2450.5,4.08079]
[1730732877483,0.04421503,2450.6,2450.5,4.08079]
[1730732877682,0.7631,2450.8,2450.5,4.08079]
[1730732877906,0.0442257,2450.6,2450.5,4.08079]
[1730732878120,0.7631,2450.8,2450.5,4.08079]
[1730732878330,0.0442374,2450.6,2450.5,4.08079]
[1730732878488,0.7631,2450.8,2450.5,4.08079]
[1730732878686,0.07099713,2452.7,2450.9,4.08013]
[1730732878687,0.7645,2451.3,2450.9,4.08013]
[1730732878897,0.7645,2451.3,2451.0,4.07987]
[1730732879191,4.1611026,2451.2,2450.8,4.08019]
[1730732879689,0.0814626,2451.2,2450.8,4.08019]
[1730732879889,4.1612226,2451.2,2450.7,4.08042]
[1730732880118,0.7645,2451.3,2450.9,4.07999]
[1730732880488,0.7645,2451.3,2451.0,4.07995]
[1730732880684,0.7645,2451.3,2450.3,3.8132]
[1730732880685,0.7645,2451.3,2451.1,4.07979]
[1730732880889,0.8126,2451.6,2451.5,4.07913]
[1730732881113,4.07814,2452.1,2451.5,4.079]
[1730732881316,4.1597626,2452.0,2451.4,4.07919]
[1730732881496,0.8126,2451.9,2451.2,4.07954]
[1730732881819,4.07915,2451.5,2451.1,4.07972]
[1730732882041,4.07934,2451.4,2451.2,0.22949069]
[1730732882352,4.07973,2451.2,2450.7,4.08037]
[1730732882655,1.309,2450.9,2450.2,0.7901]
[1730732882808,1.309,2450.9,2450.3,0.22988928]
[1730732882809,0.55,2450.6,2450.3,0.22988928]
[1730732883122,0.55,2450.6,2450.1,4.08145]
[1730732883123,0.0814626,2450.5,2450.1,4.08145]
[1730732883319,0.0814626,2450.5,2450.2,0.59775397]
[1730732883320,4.1623726,2450.5,2450.2,0.59775397]
[1730732883551,0.8125,2450.4,2450.3,0.22991334]
[1730732883764,4.89346,2450.4,2450.3,0.22991334]
[1730732884057,4.89347,2450.4,2450.0,4.45001548]
[1730732884263,4.89347,2450.4,2450.1,0.59918355]
[1730732884264,4.08129,2450.2,2450.1,0.59918355]
[1730732884425,0.55,2450.2,2450.1,0.59918355]
[1730732884635,1.10252126,2450.2,2450.1,0.59918355]
[1730732884935,5.18381126,2450.2,2450.1,0.59918355]
[1730732885119,1.10252126,2450.2,2450.1,0.23022273]
[1730732885322,0.55,2450.2,2450.1,0.59912487]
[1730732885724,4.63129,2450.2,2450.1,0.59912487]
[1730732885911,0.55,2450.2,2450.1,0.59912487]
[1730732886115,0.8125,2450.4,2450.1,0.59912487]
[1730732886116,0.8939626,2450.4,2450.1,0.59912487]
[1730732886320,0.8939626,2450.4,2450.2,0.59912487]
[1730732886619,1.4439626,2450.4,2450.3,0.59912487]
[1730732886809,0.8125,2450.4,2450.3,4.08113]
[1730732887015,0.8125,2450.4,2450.3,0.60064394]
[1730732887321,5.44346,2450.4,2450.3,0.60064394]
[1730732887653,1.91499226,2450.4,2450.3,0.60064394]
[1730732887815,1.99645486,2450.4,2450.3,0.60064394]
[1730732888016,1.91499226,2450.4,2450.3,0.60064394]
[1730732888214,0.8125,2450.4,2450.3,0.60064394]
[1730732888411,0.8549626,2450.6,2450.3,0.9857259]
[1730732888615,4.08088,2450.5,2450.4,0.60064394]
[1730732889352,4.9356026,2450.6,2450.4,0.60064394]
[1730732889653,5.4855926,2450.6,2450.5,0.60064394]
[1730732890524,6.44220986,2450.6,2450.5,0.60064394]
[1730732890729,4.63093,2450.5,2450.4,0.38618851]
[1730732891027,0.55,2450.5,2450.4,0.98855266]
[1730732891239,0.8549626,2450.6,2450.4,0.60236415]
[1730732891441,1.4049626,2450.6,2450.5,0.60236415]
[1730732891641,1.3235,2450.6,2450.5,0.60236415]
[1730732892121,1.4049626,2450.6,2450.5,0.60236415]
[1730732892523,0.7847,2450.9,2450.5,4.68313415]
[1730732892771,0.7847,2450.9,2450.6,0.60236415]
[1730732892772,4.1617626,2450.8,2450.6,0.60236415]
[1730732892970,4.9464726,2450.8,2450.7,0.98896977]
[1730732893127,4.9464726,2450.8,2450.7,0.60262629]
[1730732893927,8.4964726,2450.8,2450.7,0.60262629]
[1730732894129,8.41501,2450.8,2450.7,0.60262629]
[1730732894371,8.41501,2450.8,2450.3,0.38643183]
[1730732894372,4.08096,2450.4,2450.3,0.38643183]
[1730732894573,4.1624226,2450.4,2449.8,4.14315274]
[1730732894729,4.63113,2450.3,2450.2,0.38650012]
[1730732894936,4.63113,2450.3,2450.2,0.98935606]
[1730732895137,4.63113,2450.3,2450.2,0.60285594]
[1730732895371,6.34195086,2450.3,2450.2,0.98947411]
[1730732895679,6.34195086,2450.3,2450.2,0.60285594]
[1730732896468,6.34195086,2450.3,2450.2,0.98947411]
[1730732896673,6.34195086,2450.3,2450.2,0.60285594]
[1730732896850,6.34195086,2450.3,2450.2,0.98947411]
[1730732897052,6.32285086,2450.3,2450.2,0.98947411]
[1730732897242,5.4434926,2450.3,2450.2,0.98947411]
[1730732897870,5.4434926,2450.3,2450.2,0.60285594]
[1730732898057,5.4434926,2450.3,2450.2,0.98947411]
[1730732898261,5.4290926,2450.3,2450.2,0.98947411]
[1730732898453,5.4290926,2450.3,2450.2,0.60285594]
[1730732899041,6.38010086,2450.3,2450.2,0.60285594]
[1730732900680,6.38010086,2450.3,2450.2,0.45285594]
[1730732901056,6.35740086,2450.3,2450.2,0.45285594]
[1730732902079,2.33247086,2450.3,2449.5,4.08245]
[1730732902260,0.2865,2450.0,2449.7,0.38642381]
[1730732902462,0.3679626,2450.0,2449.8,0.23178802]
[1730732902686,4.08179,2449.9,2449.7,0.38635076]
[1730732902977,4.08179,2449.9,2449.8,0.23177027]
[1730732903493,5.29806526,2449.9,2449.8,0.23177027]
[1730732903778,4.97586356,2449.9,2449.8,0.23177027]
[1730732903986,0.89407356,2449.9,2449.8,0.23177027]
[1730732904187,0.04131096,2449.9,2449.8,4.31373027]
[1730732904400,0.04131096,2449.9,2449.8,5.21375968]
[1730732904542,0.8527626,2450.6,2450.2,4.08117]
[1730732904747,0.8527626,2450.6,2450.3,0.23177027]
[1730732904947,4.86584,2450.9,2450.4,0.23177027]
[1730732905192,4.1617726,2450.8,2450.3,5.26471919]
[1730732905343,4.1617726,2450.8,2450.4,0.23155682]
[1730732905545,0.04068678,2450.7,2450.5,0.23155682]
[1730732905750,0.04068678,2450.7,2450.6,0.23155682]
[1730732905977,4.1618326,2450.8,2450.6,0.23155682]
[1730732906154,0.0814626,2450.8,2450.7,0.23155682]
[1730732907107,8.94609,2450.9,2450.7,0.23155682]
[1730732907108,0.7856,2450.9,2450.7,0.23155682]
[1730732907249,4.1615026,2451.0,2450.8,0.23155682]
[1730732907448,4.1615026,2451.0,2450.9,0.23155682]
[1730732907449,4.1614226,2451.0,2450.9,0.23155682]
[1730732907657,0.0814626,2451.0,2450.9,0.23155682]
[1730732907963,4.07963,2451.2,2450.9,0.23146804]
[1730732908189,4.1612626,2451.1,2451.0,0.23146804]
[1730732908488,4.9172626,2451.1,2451.0,0.23146804]
[1730732908654,4.08101,2450.4,2450.0,4.08158]
[1730732908987,4.08054,2450.7,2450.1,0.23148222]
[1730732909194,4.1622426,2450.6,2450.2,0.23148222]
[1730732909379,4.1622426,2450.6,2450.3,0.23148222]
[1730732909576,4.1622426,2450.6,2450.4,0.23148222]
[1730732909896,0.6314626,2450.6,2450.5,0.23148222]
[1730732910195,4.7120926,2450.6,2450.5,0.23148222]
[1730732910487,4.08046,2450.7,2450.5,0.23148222]
[1730732910793,4.1619226,2450.7,2450.6,0.23148222]
[1730732911149,4.1619226,2450.7,2450.6,0.60200743]
[1730732911350,4.1619226,2450.7,2450.6,0.23148222]
[1730732912292,5.61814786,2450.7,2450.6,0.6026567]
[1730732912495,5.61814786,2450.7,2450.6,0.23148222]
[1730732913262,5.61814786,2450.7,2449.6,0.37121895]
[1730732913263,4.08188,2449.9,2449.6,0.37121895]
[1730732913463,4.1634226,2449.8,2449.7,0.60321368]